Cogmind - Beta 17 @@@ ROGUE MODE // 2026.08.11 @ 15:26:03 Player: aperiodic Result: Self-destructed Performance ------------- Evolutions (0) 0 Regions Visited (5) 1000 Robots Destroyed (33) 165 Value Destroyed (890) 890 Prototype IDs (20) 400 Alien Tech Used (0) 0 Bonus (259) 259 TOTAL SCORE: 2714 Bonus ------- Follower Combat Kills 60 Registered with UFD 300 Friendly Fire -101 Cogmind --------- Core Integrity 87/250 Matter 290/300 Energy 84/100 System Corruption 0% Temperature Cool (1) Movement Flying (40) Location -7/Scraptown Parts ------- > --- POWER (1) -------- (None) > --- PROPULSION (2) --- Gravmag System Flight Unit > --- UTILITY (2) ------ (None) > --- WEAPON (2) ------- (None) > --- INVENTORY (5) ---- Scrap Shield Scrap Shield Peak State ------------ > --- POWER ------------ Subdweller Power Source > --- PROPULSION ------- Wheel Compact Wheel > --- UTILITY ---------- Humpback > --- WEAPON ----------- Subdweller Beam Cannon Subdweller Machine Gun > --- INVENTORY -------- Light Ion Engine Subdweller Power Source Cargo Legs Combat Airjet Combat Airjet Flight Unit Small Storage Unit High-capacity Storage Unit Huge Storage Unit Structural Scanner Scrap Shield Scrap Shield Tower Shield Makeshift System Shield Self-contained Transmogrifier Subdweller Laser Improved EM Pulse Cannon Improved EM Pulse Cannon Light Assault Rifle Light Assault Rifle Subdweller Machine Gun Battle Cannon Dirty Datajack Multitool Flamer Shrapnel Trap [Rating: 20] Favorites ----------- Power Light Ion Engine Engine Light Ion Engine Propulsion Light Treads Treads Light Treads Wheel Wheel Hover Unit Gravmag System Flight Unit Flight Unit Utility Scrap Shield Device Seismic Detector Storage High-capacity Storage Unit Protection Scrap Shield Weapon Assault Rifle Energy Gun Subdweller Laser Energy Cannon Subdweller Beam Cannon Ballistic Gun Assault Rifle Special Weapon Mining Laser Impact Weapon Makeshift Hammer Build | -11 -10 -10 -10 -7 -7 ------- Run | Yrd Mat Min Sub Rec Scr Slots Evolved . | . . . . . . Power . | . . . . . . Propulsion . | . . . . . . Utility . | . . . . . . Weapon . | . . . . . . Parts Attached 35 | 7 5 3 15 . 5 Power 2 | 1 . . 1 . . Engine 2 | 1 . . 1 . . Core . | . . . . . . Reactor . | . . . . . . Propulsion 16 | 2 3 2 4 . 5 Treads 4 | . 2 1 1 . . Leg . | . . . . . . Wheel 7 | 2 1 1 3 . . Hover 3 | . . . . . 3 Flight 2 | . . . . . 2 Utility 6 | 2 1 1 2 . . Device 2 | 1 . 1 . . . Storage 3 | 1 1 . 1 . . Processor . | . . . . . . Hackware . | . . . . . . Protection 1 | . . . 1 . . Artifact . | . . . . . . Weapon 11 | 2 1 . 8 . . Energy Gun 1 | . . . 1 . . Energy Cannon 4 | . . . 4 . . Ballistic Gun 4 | 2 . . 2 . . Ballistic Cannon . | . . . . . . Launcher . | . . . . . . Special Weapon 1 | . 1 . . . . Impact Weapon 1 | . . . 1 . . Slashing Weapon . | . . . . . . Piercing Weapon . | . . . . . . Special Melee Weapon . | . . . . . . Unidentified Prototypes . | . . . . . . Parts Lost 3 | . . . 3 . . Power 1 | . . . 1 . . Propulsion 2 | . . . 2 . . Utility . | . . . . . . Weapon . | . . . . . . Highest Loss Streak 1 | . . . 1 . . To Critical Strikes . | . . . . . . Average Backups 9 | 3 9 14 5 26 23 Power . | . 1 1 . 2 1 Propulsion 4 | 1 4 7 3 4 3 Utility 1 | . 1 2 . 9 8 Weapon 2 | 1 2 3 1 7 6 Tool/Special . | . . . . . . Unused Backups 29 | . . 1 6 . 22 Power 2 | . . . . . 2 Propulsion 2 | . . . . . 2 Utility 9 | . . . 2 . 7 Weapon 13 | . . 1 4 . 8 Tool/Special 3 | . . . . . 3 Average Slot Usage (%) 88 | . 100 100 85 85 75 Engine 13 | . 14 14 13 14 12 Treads 16 | . 13 18 18 . . Wheel 10 | . 14 9 9 28 24 Device 4 | . 14 14 . . . Storage 6 | . 14 14 1 14 12 Protection 7 | . . . 12 . . Energy Cannon 9 | . . . 13 14 12 Ballistic Gun 16 | . 27 23 13 14 12 Special Weapon 1 | . . 4 . . . Peak Build Rating 20 | 7 8 10 19 20 20 Average Rating 12 | 5 7 8 13 19 17 On Entrance 10 | . 7 8 10 19 20 Avg Prop Armor Cover (%) 1 | . . . 1 . 20 Naked Turns 28 | . . . . . 28 Heaviest Build 217 | 13 48 48 217 217 217 Greatest Support 40 | 26 40 40 40 26 26 Greatest Overweight (x) 8 | . 1 1 8 8 8 Average Overweight (x) 2 | . . 1 1 8 5 Largest Inventory Capacity 35 | 8 20 20 35 35 35 Average Capacity 13 | 7 18 20 7 35 30 Most Carried 32 | 7 13 20 28 32 32 Average Carried 10 | 3 9 14 6 31 28 Final Capacity 35 | 8 20 20 35 35 5 Final Carried 32 | 7 13 20 28 32 4 Class Distribution -------------------- 59% | Mutant 27% | Subdweller-Mutant 13% | Hauler-Mutant Dominant Class ---------------- Mutant | -10/Materials Mutant | -10/Mines Mutant | -10/Subcaves Hauler-Mutant | -7/Recycling Hauler-Mutant | -7/Scraptown Resources | -11 -10 -10 -10 -7 -7 ----------- Run | Yrd Mat Min Sub Rec Scr Matter Collected 1028 | 294 129 229 316 . 60 Remotely . | . . . . . . Salvage Created 1217 | 149 220 74 774 . . Parts 90 | 12 23 3 52 . . Haulers Intercepted . | . . . . . . Recyclers Shooed . | . . . . . . Parts Field Recycled . | . . . . . . Retrieved Matter . | . . . . . . Parts Self-Destructed 9 | . . . 9 . . Prevented . | . . . . . . Parts Restored . | . . . . . . Kills | -11 -10 -10 -10 -7 -7 ------- Run | Yrd Mat Min Sub Rec Scr Combat Hostiles Destroyed 28 | . 4 5 19 . . Guns 12 | . 4 5 3 . . Cannons 13 | . . . 13 . . Classes Destroyed 11 | 2 4 2 3 . . Worker 1 | . 1 . . . . Builder 1 | . 1 . . . . Tunneler 3 | 3 . . . . . Recycler 1 | 1 . . . . . Operator 1 | . 1 . . . . Swarmer 6 | . . 3 3 . . Grunt 4 | . 4 . . . . Sentry 1 | . . . 1 . . Artisan 1 | . . . 1 . . Subdweller 15 | . . . 15 . . Assembled 2 | . . 2 . . . Best Kill Streak 4 | 2 4 3 3 . . Combat Bots Only 4 | . 4 3 3 . . Max Kills in Single Turn 1 | 1 1 1 1 . . Gunslinging . | . . . . . . Exploded . | . . . . . . Melee . | . . . . . . Uniques/NPCs Destroyed . | . . . . . . Combat | -11 -10 -10 -10 -7 -7 -------- Run | Yrd Mat Min Sub Rec Scr Hostile Shots Fired 87 | . 11 15 61 . . Missed 27 | . 3 6 18 . . Hits 60 | . 8 9 43 . . Projectile 60 | . 8 9 43 . . AOE 1 | . . . 1 . . Critical Strikes 1 | . . . 1 . . Damage Taken 1158 | . 88 83 987 . . Core 163 | . 24 . 139 . . Absorbed by Shields . | . . . . . . Core Remaining (%) 100 | 100 . . . . . Volleys Fired 117 | 4 26 14 73 . . Largest 2 | 2 2 2 2 . . Hottest 160 | 40 100 100 160 . . Shots Fired 190 | 8 50 27 105 . . Gun 99 | 8 48 26 17 . . Cannon 88 | . . . 88 . . Launcher . | . . . . . . Special 3 | . 2 1 . . . Kinetic 99 | 8 48 26 17 . . Thermal 91 | . 2 1 88 . . Explosive . | . . . . . . Electromagnetic . | . . . . . . Robot Hit Streak 15 | 5 7 5 15 . . Robot Miss Streak 3 | . 3 2 3 . . Penetration Max . | . . . . . . Secondary Targets . | . . . . . . Shots Hit Robots 115 | 5 28 13 69 . . Core Hits 45 | 4 15 7 19 . . Critical Kills 4 | . . . 4 . . Critical Parts Destroyed 1 | . . . 1 . . Critical Strikes 5 | . . . 5 . . Meltdown 3 | . . . 3 . . Destroy 1 | . . . 1 . . Smash 1 | . . . 1 . . Melee Attacks 22 | . . . 22 . . Impact 22 | . . . 22 . . Slashing . | . . . . . . Piercing . | . . . . . . Sneak Attacks . | . . . . . . Combat Hostiles . | . . . . . . Follow-up Attacks . | . . . . . . Damage Inflicted 2432 | 74 392 179 1787 . . Guns 774 | 74 391 176 133 . . Cannons 1496 | . . . 1496 . . Explosions . | . . . . . . Melee 158 | . . . 158 . . Ramming 4 | . 1 3 . . . Kinetic 774 | 74 391 176 133 . . Thermal 1496 | . . . 1496 . . Explosive . | . . . . . . Electromagnetic . | . . . . . . Impact 158 | . . . 158 . . Slashing . | . . . . . . Piercing . | . . . . . . Highest Corruption . | . . . . . . Average Corruption . | . . . . . . Corruption Purged . | . . . . . . Corruption Blocked . | . . . . . . Overload Shots . | . . . . . . Overflow Damage 45 | . . . 45 . . Projectiles 10 | . . . 10 . . Explosions . | . . . . . . Melee 35 | . . . 35 . . Knockbacks 3 | . . . 3 . . Impact 3 | . . . 3 . . Kinetic . | . . . . . . Secondary . | . . . . . . Self-Inflicted Damage . | . . . . . . Shots . | . . . . . . Rammed 2 | . 1 1 . . . Targets Rammed 2 | . 1 1 . . . Kicked . | . . . . . . Crushed . | . . . . . . Highest Temperature 183 | . 40 20 183 . . Average Temperature 40 | . 22 10 44 . . Received Heat Transfer 270 | . 48 60 162 . . Siege Activations . | . . . . . . Martial Activations . | . . . . . . Shielding Activations . | . . . . . . Robots Disrupted . | . . . . . . Combat Hostiles . | . . . . . . Robots Corrupted . | . . . . . . Combat Hostiles . | . . . . . . Parts Fried . | . . . . . . Impact Corruptions 2 | . . . 2 . . Robots Melted 3 | . . . 3 . . Combat Hostiles 3 | . . . 3 . . Parts Melted 2 | . . . 2 . . Heat Transferred 1998 | . . . 1998 . . Parts Sabotaged . | . . . . . . Parts Stolen . | . . . . . . Parts Stripped . | . . . . . . Power Chain Reactions . | . . . . . . Alert | -11 -10 -10 -10 -7 -7 ------- Run | Yrd Mat Min Sub Rec Scr Maximum Alert Level . | . . . . . . Low Security (%) 100 | 100 100 100 . 100 . Level 1 . | . . . . . . Level 2 . | . . . . . . Level 3 . | . . . . . . Level 4 . | . . . . . . Level 5 . | . . . . . . High Security . | . . . . . . Max Security . | . . . . . . Peak Influence 80 | 10 80 70 . 9 . Initial 9 | . . . . 9 . Average 7 | 3 18 7 . . . Influence Increases 287 | 20 106 71 90 . . Destroy 0b10 Robot/C 220 | . 80 60 80 . . Destroy 0b10 Robot/NC 35 | 20 15 . . . . Destroy Leader 30 | . 10 10 10 . . Destroy Structure 2 | . 1 1 . . . Influence Decreases 287 | 20 106 1 140 20 . Entered New Map 48 | . . . 37 11 . Time Decay 224 | 20 106 1 88 9 . Lost Part 15 | . . . 15 . . Squads Dispatched 2 | . 2 . . . . Investigation 1 | . 1 . . . . Extermination . | . . . . . . Reinforcement 1 | . 1 . . . . Assault . | . . . . . . Garrison . | . . . . . . Intercept . | . . . . . . Searches Triggered . | . . . . . . Construction Impeded . | . . . . . . Haulers Reinforced . | . . . . . . Active Scanning Responses . | . . . . . . Cargo Convoy Interrupts . | . . . . . . Stealth | -11 -10 -10 -10 -7 -7 --------- Run | Yrd Mat Min Sub Rec Scr Distress Signals 4 | . 1 3 . . . Communications Jammed . | . . . . . . Distress Signals . | . . . . . . Times Spotted 48 | . 11 9 28 . . Peak Tracking Total 3 | . 3 3 3 . . Tactical Retreats 1 | . . 1 . . . Traps | -11 -10 -10 -10 -7 -7 ------- Run | Yrd Mat Min Sub Rec Scr Traps Triggered 2 | . 1 . 1 . . Indirectly . | . . . . . . Trap Hack Attempts . | . . . . . . Triggered . | . . . . . . Disarmed . | . . . . . . Reprogrammed . | . . . . . . Reused . | . . . . . . Traps Extracted . | . . . . . . Installed . | . . . . . . Triggered . | . . . . . . Most Traps Carried 1 | . . . 1 1 1 Machines | -11 -10 -10 -10 -7 -7 ---------- Run | Yrd Mat Min Sub Rec Scr Machines Disabled 2 | . 1 . 1 . . Max in Single Turn 1 | . 1 . 1 . . Machines Repaired . | . . . . . . Machines Dismantled . | . . . . . . Machines Sabotaged . | . . . . . . Overloaded Fab Kills . | . . . . . . Hacking | -11 -10 -10 -10 -7 -7 --------- Run | Yrd Mat Min Sub Rec Scr Machines Accessed 5 | . . . 2 . 3 Terminals . | . . . . . . Fabricators . | . . . . . . Repair Stations . | . . . . . . Recycling Units . | . . . . . . Scanalyzers . | . . . . . . Garrison Access . | . . . . . . Total Hacks 18 | . . . 5 . 13 Successful 18 | . . . 5 . 13 Failed . | . . . . . . Catastrophic . | . . . . . . Database Lockouts . | . . . . . . Manual . | . . . . . . Terminals . | . . . . . . Fabricators . | . . . . . . Repair Stations . | . . . . . . Recycling Units . | . . . . . . Scanalyzers . | . . . . . . Garrison Access . | . . . . . . Terminal Hacks 18 | . . . 5 . 13 Record 9 | . . . 4 . 5 Robot Analysis 7 | . . . . . 7 Proto ID Catalog 2 | . . . 1 . 1 Fabricator Hacks . | . . . . . . Repair Station Hacks . | . . . . . . Recycling Unit Hacks . | . . . . . . Scanalyzer . | . . . . . . Garrison Access Hacks . | . . . . . . Unauthorized Hacks . | . . . . . . Terminals . | . . . . . . Fabricators . | . . . . . . Repair Stations . | . . . . . . Recycling Units . | . . . . . . Scanalyzers . | . . . . . . Garrison Access . | . . . . . . Data Cores Recovered 1 | . 1 . . . . Used . | . . . . . . Hacking Detections . | . . . . . . Full Trace Events . | . . . . . . Feedback Events . | . . . . . . Feedback Blocked . | . . . . . . Robot Schematics Acquired . | . . . . . . Robots Built . | . . . . . . Authchips . | . . . . . . Time . | . . . . . . Total Robot Build Rating . | . . . . . . Part Schematics Acquired . | . . . . . . Parts Built . | . . . . . . Authchips . | . . . . . . Time . | . . . . . . Total Part Build Rating . | . . . . . . Part Studies Acquired . | . . . . . . Parts Repaired . | . . . . . . Time . | . . . . . . Parts Recycled . | . . . . . . Recycled Matter . | . . . . . . Retrieved Matter . | . . . . . . Retrieved Components . | . . . . . . Parts Scanalyzed . | . . . . . . Part Schematics Acquired . | . . . . . . Parts Damaged . | . . . . . . Bothacking | -11 -10 -10 -10 -7 -7 ------------ Run | Yrd Mat Min Sub Rec Scr Used RIF Installer . | . . . . . . Robots Hacked . | . . . . . . Non-combat . | . . . . . . Combat . | . . . . . . Robot Hacks Applied . | . . . . . . Relay Couplers Released . | . . . . . . Fabnet Peak Effective % . | . . . . . . Robots Rewired . | . . . . . . Allies Hacked . | . . . . . . Hacks Repelled . | . . . . . . Allies | -11 -10 -10 -10 -7 -7 -------- Run | Yrd Mat Min Sub Rec Scr Total Allies 3 | . . 3 . . . Largest Group 3 | . . 3 3 . . Highest-Rated Group 40 | . . 40 40 . . Highest-Rated Ally 16 | . . 16 16 . . Total Orders 2 | . . . 2 . . STAY 1 | . . . 1 . . FOLLOW 1 | . . . 1 . . Ally Attacks 23 | . . . 23 . . Total Damage 294 | . . . 294 . . Kills 2 | . . . 2 . . Allies Corrupted . | . . . . . . Allies Melted . | . . . . . . Intel | -11 -10 -10 -10 -7 -7 ------- Run | Yrd Mat Min Sub Rec Scr Active Infowar (turns) 6186 | 8 423 5444 311 . . Seismic 6186 | 8 423 5444 311 . . Robot Analysis Total 7 | . . . . . 7 Derelict Logs Recovered 3 | . . 1 2 . . Drone Launches . | . . . . . . Drone Recoveries . | . . . . . . Exploration | -11 -10 -10 -10 -7 -7 ------------- Run | Yrd Mat Min Sub Rec Scr Turns Passed 20652 | 82 423 5444 12913 312 1478 Spaces Moved 6489 | 53 204 715 4396 147 974 Core 56 | 1 . . . . 55 Treads 4017 | . 50 618 3349 . . Legs . | . . . . . . Wheels 2109 | 52 154 97 1047 147 612 Hover 118 | . . . . . 118 Flight 189 | . . . . . 189 Fastest Speed 40 | 50 90 105 90 210 40 Average Speed 190 | 89 135 221 197 210 149 Slowest Speed 240 | 90 240 240 240 210 210 Overloaded Moves . | . . . . . . Propulsion Burnouts . | . . . . . . Robots Hopped . | . . . . . . Potential Cave-ins . | . . . . . . Cave-ins Triggered . | . . . . . . Exploration Rate (%) 53 | 4 41 99 96 24 57 Regions Visited 5 Branch Regions 4 Pre-discovered Areas 2 | . . . 2 . . Known Exits Taken 1 | . . . 1 . . Unknown Exits Taken 4 | 1 1 1 . 1 . Scrap Searched 18 | . . 2 10 . 6 Spaces Dug 3 | . 1 1 1 . . Terrain Destroyed 8 | . 1 1 6 . . Melee . | . . . . . . Projectile 8 | . 1 1 6 . . AOE . | . . . . . . Terrain Rammed . | . . . . . . Walls Destroyed . | . . . . . . Machines Disabled . | . . . . . . Actions | -11 -10 -10 -10 -7 -7 --------- Run | Yrd Mat Min Sub Rec Scr Total 14564 | 76 292 4544 8508 151 993 Wait 7770 | 6 50 3793 3919 1 1 Move 6484 | 52 203 714 4395 146 974 Hop . | . . . . . . Pick Up 55 | 7 5 10 29 4 . Fast Attach 27 | 7 . . 13 . 7 Attach 5 | . . 1 4 . . Detach 1 | . . 1 . . . Swap 23 | . 7 6 10 . . Drop 37 | . . 4 22 . 11 Fire 117 | 4 26 14 73 . . Melee 22 | . . . 22 . . Ram . | . . . . . . Kick . | . . . . . . Crush 2 | . 1 1 . . . Escape Stasis . | . . . . . . Rewire . | . . . . . . Trap . | . . . . . . Miscellaneous 21 | . . . 21 . . Route ------- -11/Scrapyard -10/Materials (discovered 3 exits: [*Mat] / [*Min x2]) -10/Mines (discovered 3 exits: [*Mat x2] / *Sub) -10/Subcaves (discovered 3 exits: [*Mat x2] / *Rec) -7/Recycling -7/Scraptown History --------- Turn | Location | Event 32 | -11/Scrapyard | Discovered new exit (range 14) 83 | -11/Scrapyard | Entered Materials 83 | -10/Materials | Discovered new exit (range 8) 289 | -10/Materials | Discovered new exit (range 13) 313 | -10/Materials | Build established: Mutant 356 | -10/Materials | Discovered new exit (range 9) 506 | -10/Materials | Entered Mines 522 | -10/Mines | Assembled infested the area 527 | -10/Mines | Assisted by a Guerilla fighting off Assembled 556 | -10/Mines | Met a Derelict bent on vengeance 3467 | -10/Mines | Discovered new exit (range 7) 5124 | -10/Mines | Found DCF Scrap (14 items) 5451 | -10/Mines | Discovered new exit (range 7) 5485 | -10/Mines | Discovered new exit (range 10) 5533 | -10/Mines | Assisted by bots powering up and referring to "LRC-V3" 5950 | -10/Mines | Entered Subcaves 5950 | -10/Subcaves | Accompanied by 3 allies 5951 | -10/Subcaves | Identified exit to Recycling 6138 | -10/Subcaves | Discovered new exit (range 8) 6149 | -10/Subcaves | Learned location of Zion (-6) 6149 | -10/Subcaves | Met a Zionite searching for "candidates" 6225 | -10/Subcaves | Disturbed a concealed Subdweller 6228 | -10/Subcaves | Disturbed a concealed Subdweller 9166 | -10/Subcaves | Shifting Twisted Machinery released Scrap Shield 9184 | -10/Subcaves | Visited Clippyterm 9189 | -10/Subcaves | Learned Research security intel 9211 | -10/Subcaves | Shifting Twisted Machinery released Hvy. Battle Rifle 11755 | -10/Subcaves | Visited 4L-MR0's lab 11887 | -10/Subcaves | Learned 4 Materials zone layouts 12035 | -10/Subcaves | Discovered new exit (range 8) 12116 | -10/Subcaves | A swath of the cavern ceiling suddenly collapsed 12676 | -10/Subcaves | Build established: Subdweller-Mutant 12754 | -10/Subcaves | A Subdweller sparked back to life 12754 | -10/Subcaves | A Subdweller sparked back to life 12768 | -10/Subcaves | Found Cargo Legs 13364 | -10/Subcaves | Core integrity fell below 50% 13840 | -10/Subcaves | A swath of the cavern ceiling suddenly collapsed 14914 | -10/Subcaves | Shifting Twisted Machinery released Sub. Machine Gun 14914 | -10/Subcaves | Shifting Twisted Machinery released Sub. Monowheel 18068 | -10/Subcaves | Build established: Hauler-Mutant 18722 | -10/Subcaves | Found Prototype Device 18730 | -10/Subcaves | Found Tower Shield 18863 | -10/Subcaves | Entered Recycling 18864 | -7/Recycling | Joined Warlord attack on 0b10 via Recycling 19118 | -7/Recycling | Scanned before Scraplab entrance 19150 | -7/Recycling | Entered Scraplab 19167 | -7/Recycling | Discovered new exit (range 4) 19175 | -7/Recycling | Entered Scraptown 19442 | -7/Scraptown | Visited UFD Registry 19442 | -7/Scraptown | Registered with UFD as "Roughshaft" 19673 | -7/Scraptown | Visited Bundlers 19934 | -7/Scraptown | Visited Modified Component R&D 20015 | -7/Scraptown | Visited Curators Association 20053 | -7/Scraptown | Visited Analyses Database 20102 | -7/Scraptown | Visited Cartography Club 20120 | -7/Scraptown | Visited Abandonware Association 20146 | -7/Scraptown | Learned abandonware demo "ERRANTS.EXE" 20146 | -7/Scraptown | Learned abandonware demo "KABOOM.EXE" 20198 | -7/Scraptown | Visited Scrapoid Pod Storage 20251 | -7/Scraptown | Received an X-ray algorithm 20301 | -7/Scraptown | Visited LU-1G1's Boring Crew 20330 | -7/Scraptown | Visited Science Guys 20400 | -7/Scraptown | Visited Chapter 10 20429 | -7/Scraptown | Visited A0-MCA Data Center 20653 | -7/Scraptown | Self-destructed Last Messages --------------- 20454_ Dropped Humpback. 20458_ Dropped Com. Wheel. 20458_ Dropped Wheel. 20459_ Dropped Sub. Power Source. 20459_ Dropped Sub. Machine Gun. 20460_ Dropped Sub. Beam Cannon. 20488_ Acquired Mak. Flight Unit. 20518_ Acquired Flight Unit. 20519_ Dropped Mak. Flight Unit. 20547_ Acquired Gravmag System. 20548_ Acquired 30 matter. 20576_ Dropped Flight Unit. 20577_ Acquired Cmb. Airjet. 20579_ Dropped Cmb. Airjet. 20613_ Acquired Airjet. 20614_ Dropped Airjet. 20615_ Acquired Airjet. 20619_ Acquired 30 matter. 20650_ Dropped Airjet. 20651_ Acquired Flight Unit. Map ----- +----------------------------------------------------+ | #????????? #?????######### ####??????# #????## | | # ########### ####???????##### ########### ####### | | #???????#"""" """"""""""" """"""" | | #???????#" | | #???????#" | | #???????#" | | #???????#" | | ######## #???#####" | | ???????# #???#"""" """""""""""""""""" | | ???????# #???#"""" """""""""""""""""" | | ???????# #???#"""" ""###### ######## | | ???????# #???#"""" ""# #?? | | ???????# #???#"""" ""# X"?? | | ????##?# ###?#"""" ""# "" "" #?? | | """? #?# ""#"#"""" E ""# "" "" X"?? | | "? #?# """"#"""" ""# " " ### | | " #?# ""#######" "" "" | | " #?# ###?????#" "" "" | | " ??# #########" ""# " " ### | | " #?# ""# "" "" ""#? | | "" #?# & ""# "" "" ##? | | """ ??# ![j![ j ""#?? X"?? | | ? #??# !!|/]=] x ""#? ##? | | ### #### TT =]=!![== ""###### ######## | | TT |!!]**[ """""""""""""""""" | | !*= @ """""""""""""""""" | | ! = | | | | | | #""""#" | | #????#" | | #????#"""""" """"""""""" """"" | | ########## ### ####????####### ########### ##### | | ???????? ##j #???????????? ??????? ??? | | ??????? ## #??????????#""" ""??? #?? | | ?????? ## #??????????#"""" """#"" #? | | ????? ## #??????????#""" "!"#"""" #? | | ???? """"" ## #??????????#""" """#"" " #? | | ??# """" ## #???????????""" """#"""" #? | | ??# """" ??# #????????????""""""""#"" #? | | ???????? ???# #?????????????""""""???" #? | | ???????? ???# #?????????????""""""???? " ##? | | ????????##???# #???????????????????????"""""""?? | | ?????????????# #???????????????????????#######?? | | ??????######## #???????????????????????????????? | | ??????"""""""" #???????????????????????????????? | | ?????""" """"" #???????????????????????????????? | | ???"""" " "" #???????????????????????????????? | | #???????????????????????????????? | | ??#"" "" "" " #???????????????????????????????? | +----------------------------------------------------+ Best States ------------- Heat Dissipation 25 Energy Generation 15 Energy Capacity 200 Matter Stores 300 Matter Capacity 300 Sight Range 16 Terrain Scan Density 10 Armor Coverage 800 Evasion (%) 62 Recoil Reduction 2 Item Schematics ----------------- None Robot Schematics ------------------ None Fabricated ------------ Nothing Repaired ---------- Nothing Studied --------- None Alien Tech Used ----------------- None Achievements -------------- None Challenges ------------ None Game ------ Seed DroneAmuletDatajack Manual? 0 Play Time 01:05:37 Cumulative 870.7 hours Start 2026.08.11 @ 07:29:50 End 2026.08.11 @ 15:26:03 Sessions 5 Manual Loads 0 Difficulty Rogue Special Mode None Game No. 307 Rogue 303 Adventurer 4 Explorer 0 Win Type - Total 23 Types 9/3/7/0/0/0/2/2/0/0 Lore% 91 Gallery% 81 Achievement% 67 Wizard Run 0 Options --------- Layout 1 ASCII 0 Keyboard 0 Movement Numpad Keybinds 0 Fullscreen 1 Font 40/SmallcapsGlow Map View 50x40 Zoom Use 0% Tactical HUD 1 Map Filters NONE Filters NONE Steam 1 RUN: dda9a94e-80bd-4f54-a53e-924c31466109